fUST/lending_fUST_20250802
["ID","MTS","AMOUNT","RATE_DAILY","PERIOD"]
[376785586,1754123440724,-460.0,0.00024657,10]
[376785587,1754123440733,-623.65,0.00024657,10]
[376785588,1754123440742,-460.0,0.00024657,10]
[376785589,1754123440751,-623.65,0.00024657,10]
[376785590,1754123440760,-460.0,0.00024657,10]
[376785591,1754123440770,-623.65,0.00024657,10]
[376785592,1754123440779,-460.0,0.00024657,10]
[376785593,1754123440787,-623.65,0.00024657,10]
[376785594,1754123440796,-460.0,0.00024657,10]
[376785595,1754123440807,-623.65,0.00024657,10]
[376785596,1754123440816,-460.0,0.00024657,10]
[376785597,1754123440827,-623.65,0.00024657,10]
[376785598,1754123440836,-460.0,0.00024657,10]
[376785599,1754123440845,-623.65,0.00024657,10]
[376785600,1754123440854,-460.0,0.00024657,10]
[376785601,1754123440863,-623.65,0.00024657,10]
[376785602,1754123440871,-460.0,0.00024657,10]
[376785603,1754123440880,-460.0,0.00024657,10]
[376785604,1754123440891,-460.0,0.00024657,10]
[376785605,1754123440902,-623.65,0.00024657,10]
[376785606,1754123440911,-460.0,0.00024657,10]
[376785607,1754123440919,-460.0,0.00024657,10]
[376785608,1754123440928,-460.0,0.00024657,10]
[376785609,1754123440937,-623.65,0.00024657,10]
[376785610,1754123440946,-460.0,0.00024657,10]
[376785611,1754123440955,-460.0,0.00024657,10]
[376785612,1754123440964,-544.95503723,0.00024657,10]
[376785613,1754123440973,-623.65,0.00024657,10]
[376785614,1754123440983,-179.0958546,0.00024657,10]
[376785615,1754123440992,-460.0,0.00024657,10]
[376785616,1754123441001,-460.0,0.00024657,10]
[376785617,1754123441010,-460.0,0.00024657,10]
[376785619,1754123441019,-333.06,0.00024657,10]
[376785620,1754123441028,-651.85,0.00024657,10]
[376785621,1754123441037,-460.0,0.00024657,10]
[376785622,1754123441046,-460.0,0.00024657,10]
[376785624,1754123441055,-462.31362634,0.00024657,10]
[376785626,1754123441064,-651.85,0.00024657,10]
[376785628,1754123441073,-460.0,0.00024657,10]
[376785630,1754123441082,-471.44612149,0.00024657,10]
[376785632,1754123441091,-651.85,0.00024657,10]
[376785634,1754123441100,-460.0,0.00024657,10]
[376785635,1754123441109,-460.0,0.00024657,10]
[376785637,1754123441118,-651.85,0.00024657,10]
[376785639,1754123441127,-573.30431143,0.00024657,10]
[376785641,1754123441137,-651.85,0.00024657,10]
[376785643,1754123441147,-651.85,0.00024657,10]
[376785645,1754123441156,-651.85,0.00024657,10]
[376785647,1754123441165,-651.85,0.00024657,10]
[376785649,1754123441174,-461.23516067,0.00024657,10]
[376785651,1754123441182,-651.85,0.00024657,10]
[376785653,1754123441191,-471.53444114,0.00024657,10]
[376785655,1754123441200,-651.85,0.00024657,10]
[376785657,1754123441209,-651.85,0.00024657,10]
[376785659,1754123441218,-651.85,0.00024657,10]
[376785661,1754123441226,-651.85,0.00024657,10]
[376785663,1754123441236,-651.85,0.00024657,10]
[376785665,1754123441245,-651.85,0.00024657,10]
[376785667,1754123441255,-651.85,0.00024657,10]
[376785669,1754123441267,-651.85,0.00024657,10]
[376785671,1754123441276,-651.85,0.00024657,10]
[376785673,1754123441285,-651.85,0.00024657,10]
[376785675,1754123441295,-651.85,0.00024657,10]
[376785677,1754123441305,-651.85,0.00024657,10]
[376785679,1754123441314,-651.85,0.00024657,10]
[376785681,1754123441323,-651.85,0.00024657,10]
[376785683,1754123441332,-652.01147229,0.00024657,10]
[376785685,1754123441341,-460.0,0.00024657,10]
[376785687,1754123441350,-460.0,0.00024657,10]
[376785689,1754123441359,-460.0,0.00024657,10]
[376785691,1754123441367,-175.2637051,0.00024657,10]
[376785693,1754123441376,-460.0,0.00024657,10]
[376785695,1754123441385,-463.20263174,0.00024657,10]
[376785697,1754123441393,-780.0,0.00024657,2]
[376785699,1754123441402,-500.57319792,0.00024657,10]
[376785701,1754123441411,-460.0,0.00024657,10]
[376785703,1754123441420,-460.0,0.00024657,10]
[376785704,1754123441429,-460.0,0.00024657,10]
[376785706,1754123441438,-460.0,0.00024657,10]
[376785708,1754123441447,-460.0,0.00024657,10]
[376785710,1754123441456,-460.0,0.00024657,10]
[376785712,1754123441464,-153.232485,0.00024657,7]
[376785714,1754123441473,-460.0,0.00024657,10]
[376785716,1754123441482,-460.0,0.00024657,10]
[376785718,1754123441490,-460.0,0.00024657,10]
[376785720,1754123441499,-460.0,0.00024657,10]
[376785722,1754123441508,-460.0,0.00024657,10]
[376785724,1754123441516,-460.0,0.00024657,10]
[376785726,1754123441525,-460.0,0.00024657,10]
[376785728,1754123441533,-460.0,0.00024657,10]
[376785730,1754123441541,-460.0,0.00024657,10]
[376785731,1754123441550,-460.0,0.00024657,10]
[376785733,1754123441559,-460.0,0.00024657,10]
[376785735,1754123441568,-460.0,0.00024657,10]
[376785737,1754123441576,-460.0,0.00024657,10]
[376785739,1754123441585,-460.0,0.00024657,10]
[376785741,1754123441593,-460.0,0.00024657,10]
[376785743,1754123441603,-460.0,0.00024657,10]
[376785745,1754123441611,-460.0,0.00024657,10]
[376785747,1754123441620,-325.27794687,0.00024657,10]
[376785749,1754123441629,-151.0,0.00024657,2]
[376785751,1754123441639,-682.5,0.00024657,10]
[376785753,1754123441648,-460.0,0.00024657,10]
[376785755,1754123441657,-682.5,0.00024657,10]
[376785757,1754123441665,-460.0,0.00024657,10]
[376785759,1754123441674,-460.0,0.00024657,10]
[376785761,1754123441684,-460.0,0.00024657,10]
[376785762,1754123441693,-682.5,0.00024657,10]
[376785765,1754123441705,-682.5,0.00024657,10]
[376785767,1754123441714,-151.0,0.00024657,2]
[376785769,1754123441723,-682.5,0.00024657,10]
[376785771,1754123441731,-682.5,0.00024657,10]
[376785773,1754123441740,-682.5,0.00024657,10]
[376785775,1754123441749,-460.0,0.00024657,10]
[376785776,1754123441759,-682.5,0.00024657,10]
[376785778,1754123441768,-682.5,0.00024657,10]
[376785780,1754123441777,-500.0,0.00024657,2]
[376785782,1754123441786,-682.5,0.00024657,10]
[376785784,1754123441796,-682.5,0.00024657,10]
[376785786,1754123441805,-682.5,0.00024657,10]
[376785788,1754123441815,-682.5,0.00024657,10]
[376785790,1754123441824,-682.5,0.00024657,10]
[376785792,1754123441835,-682.5,0.00024657,10]
[376785794,1754123441843,-682.5,0.00024657,10]
[376785796,1754123441852,-682.5,0.00024657,10]
[376785798,1754123441861,-682.5,0.00024657,10]
[376785800,1754123441870,-682.5,0.00024657,10]
[376785802,1754123441879,-682.5,0.00024657,10]
[376785804,1754123441888,-682.5,0.00024657,10]
[376785806,1754123441898,-151.29593713,0.00024657,2]
[376785808,1754123441907,-682.5,0.00024657,10]
[376785810,1754123441917,-682.5,0.00024657,10]
[376785812,1754123441926,-682.70413366,0.00024657,10]
[376785814,1754123441935,-152.94581995,0.00024657,2]
[376785816,1754123441945,-500.0,0.00024657,2]
[376785819,1754123441955,-460.0,0.00024657,10]
[376785821,1754123441964,-461.97977216,0.00024657,10]
[376785823,1754123441973,-460.0,0.00024657,10]
[376785824,1754123441982,-460.0,0.00024657,10]
[376785826,1754123441992,-312.16666667,0.00024657,10]
[376785829,1754123442002,-461.3868985,0.00024657,10]
[376785831,1754123442011,-460.0,0.00024657,10]
[376785832,1754123442019,-460.0,0.00024657,10]
[376785835,1754123442028,-460.65153151,0.00024657,7]
[376785836,1754123442037,-460.0,0.00024657,10]
[376785838,1754123442046,-462.10500147,0.00024657,10]
[376785840,1754123442055,-460.0,0.00024657,10]
[376785842,1754123442064,-460.0,0.00024657,10]
[376785844,1754123442073,-460.0,0.00024657,10]
[376785846,1754123442082,-460.0,0.00024657,10]
[376785848,1754123442091,-460.0,0.00024657,10]
[376785850,1754123442100,-460.0,0.00024657,10]
[376785852,1754123442109,-460.0,0.00024657,10]
[376785854,1754123442117,-460.0,0.00024657,10]
[376785856,1754123442127,-460.0,0.00024657,10]
[376785858,1754123442137,-460.0,0.00024657,10]
[376785860,1754123442146,-460.0,0.00024657,10]
[376785862,1754123442155,-460.99063525,0.00024657,10]
[376785864,1754123442164,-460.0,0.00024657,10]
[376785866,1754123442174,-460.0,0.00024657,10]
[376785868,1754123442183,-460.0,0.00024657,10]
[376785870,1754123442192,-460.0,0.00024657,10]
[376785872,1754123442201,-460.0,0.00024657,10]
[376785874,1754123442210,-460.0,0.00024657,10]
[376785876,1754123442220,-460.0,0.00024657,10]
[376785878,1754123442228,-460.0,0.00024657,10]
[376785880,1754123442237,-263.2485768,0.00024657,10]
[376785882,1754123442247,-460.0,0.00024657,10]
[376785884,1754123442258,-460.0,0.00024657,10]
[376785886,1754123442268,-460.0,0.00024657,10]
[376785888,1754123442277,-460.0,0.00024657,10]
[376785890,1754123442286,-460.0,0.00024657,10]
[376785892,1754123442296,-460.0,0.00024657,10]
[376785894,1754123442306,-203.66452426,0.00024657,10]
[376785896,1754123442315,-460.0,0.00024657,10]
[376785898,1754123442324,-460.0,0.00024657,10]
[376785900,1754123442335,-460.0,0.00024657,10]
[376785912,1754123442433,-460.0,0.00024657,10]
[376785914,1754123442443,-460.0,0.00024657,10]
[376785916,1754123442452,-191.87,0.00024657,10]
[376785918,1754123442460,-460.0,0.00024657,10]
[376785920,1754123442470,-206.65300604,0.00024657,10]
[376785922,1754123442479,-460.0,0.00024657,10]
[376785924,1754123442488,-460.0,0.00024657,10]
[376785926,1754123442497,-460.0,0.00024657,10]
[376785928,1754123442506,-460.0,0.00024657,10]
[376785931,1754123442515,-460.0,0.00024657,10]
[376785934,1754123442524,-460.0,0.00024657,10]
[376785935,1754123442532,-460.0,0.00024657,10]
[376785938,1754123442541,-460.0,0.00024657,10]
[376785940,1754123442550,-460.0,0.00024657,10]
[376785942,1754123442560,-460.0,0.00024657,10]
[376785945,1754123442569,-460.0,0.00024657,10]
[376785947,1754123442578,-460.0,0.00024657,10]
[376785949,1754123442587,-460.0,0.00024657,10]
[376785951,1754123442596,-460.0,0.00024657,10]
[376785953,1754123442604,-460.0,0.00024657,10]
[376785955,1754123442613,-460.0,0.00024657,10]
[376785957,1754123442622,-460.0,0.00024657,10]
[376785959,1754123442631,-460.0,0.00024657,10]
[376785961,1754123442641,-460.0,0.00024657,10]
[376785963,1754123442649,-460.0,0.00024657,10]
[376785966,1754123442659,-460.0,0.00024657,10]
[376785970,1754123442668,-460.0,0.00024657,10]
[376785973,1754123442677,-460.0,0.00024657,10]
[376785977,1754123442686,-460.0,0.00024657,10]
[376785979,1754123442695,-460.0,0.00024657,10]
[376785981,1754123442704,-460.0,0.00024657,10]
[376785983,1754123442713,-299.66085248,0.00024657,10]
[376785985,1754123442722,-460.0,0.00024657,10]
[376785986,1754123442731,-460.0,0.00024657,10]
[376785988,1754123442739,-460.0,0.00024657,10]
[376785990,1754123442748,-218.33855189,0.00024657,10]
[376785992,1754123442757,-460.0,0.00024657,10]
[376785994,1754123442766,-460.0,0.00024657,10]
[376785996,1754123442775,-1086.65,0.00024657,10]
[376785998,1754123442784,-1086.65,0.00024657,10]
[376786000,1754123442793,-1086.65,0.00024657,10]
[376786002,1754123442803,-1086.65,0.00024657,10]
[376786004,1754123442812,-1086.65,0.00024657,10]
[376786006,1754123442821,-460.0,0.00024657,10]
[376786008,1754123442830,-460.0,0.00024657,10]
[376786010,1754123442839,-1086.65,0.00024657,10]
[376786012,1754123442848,-460.0,0.00024657,10]
[376786014,1754123442857,-1086.65,0.00024657,10]
[376786016,1754123442866,-460.0,0.00024657,10]
[376786018,1754123442875,-1086.65,0.00024657,10]
[376786020,1754123442884,-460.0,0.00024657,10]
[376786022,1754123442893,-1086.65,0.00024657,10]
[376786023,1754123442902,-460.0,0.00024657,10]
[376786025,1754123442912,-460.0,0.00024657,10]
[376786027,1754123442921,-293.81101482,0.00024657,10]
[376786029,1754123442930,-1086.65,0.00024657,10]
[376786031,1754123442942,-1086.65,0.00024657,10]
[376786034,1754123442964,-1086.65,0.00024657,10]
[376786035,1754123442982,-1086.65,0.00024657,10]
[376786037,1754123442991,-1086.65,0.00024657,10]
[376786039,1754123443000,-1086.65,0.00024657,10]
[376786041,1754123443019,-1086.65,0.00024657,10]
[376786043,1754123443028,-1086.65,0.00024657,10]
[376786045,1754123443037,-1086.65,0.00024657,10]
[376786047,1754123443046,-1086.65,0.00024657,10]
[376786049,1754123443055,-1086.65,0.00024657,10]
[376786051,1754123443064,-1086.65,0.00024657,10]
[376786053,1754123443073,-1086.65,0.00024657,10]
[376786055,1754123443082,-5000.0,0.00024657,2]
[376786057,1754123443091,-769.22,0.00024657,7]
[376786059,1754123443100,-151.0,0.00024658,7]
[376786061,1754123443109,-151.0,0.00024658,7]
[376786063,1754123443118,-151.0,0.00024658,7]
[376786065,1754123443127,-151.0,0.00024658,7]
[376786067,1754123443137,-151.0,0.00024658,7]
[376786069,1754123443147,-180.838031,0.00024658,7]
[376786071,1754123443156,-200.0,0.00024658,2]
[376786073,1754123443165,-280.0,0.00024658,2]
[376786075,1754123443174,-500.0,0.00024658,2]
[376786077,1754123443183,-151.0,0.00024658,2]
[376786080,1754123443191,-500.0,0.00024673,2]
[376786083,1754123443200,-500.0,0.00024673,2]
[376786085,1754123443209,-508.13626735,0.00024673,2]
[376786088,1754123443218,-501.67000609,0.00024673,2]
[376786091,1754123443227,-213.69506684,0.00024673,2]
[376786094,1754123443236,-500.0,0.0002468,2]
[376786097,1754123443245,-3288.27,0.000247,7]
[376786099,1754123443254,-6152.55,0.000247,7]
[376786102,1754123443267,-1747.64,0.000247,7]
[376786105,1754123443276,-12122.47,0.000247,2]
[376786108,1754123443285,-430.4623945,0.000247,2]
[376786110,1754123443294,-430.4623945,0.000247,2]
[376786113,1754123443304,-151.0,0.00024713,7]
[376786115,1754123443313,-151.0,0.00024713,7]
[376786117,1754123443323,-151.0,0.00024713,7]
[376786119,1754123443332,-151.0,0.00024713,7]
[376786121,1754123443341,-259.912016,0.00024713,7]
[376786122,1754123443350,-151.0,0.00024713,7]
[376786123,1754123443359,-2193.69585028,0.00024756,2]
[376786124,1754123443368,-769.22,0.00024757,7]
[376786125,1754123443377,-16475.30046257,0.00024774,2]
[376786126,1754123443386,-151.0,0.000248,7]
[376786127,1754123443395,-151.0,0.000248,7]
[376786128,1754123443404,-151.0,0.000248,7]
[376786129,1754123443414,-151.0,0.000248,7]
[376786131,1754123443424,-151.0,0.000248,7]
[376786133,1754123443433,-151.0,0.000248,7]
[376786135,1754123443442,-170.4289651,0.000248,2]
[376786136,1754123443451,-23326.3943891,0.000248,2]
[376786138,1754123443460,-430.4623945,0.000248,2]
[376786140,1754123443469,-769.22,0.00024857,7]
[376786142,1754123443478,-537.76867247,0.00024873,2]
[376786144,1754123443487,-500.0,0.00024873,2]
[376786146,1754123443496,-501.15845177,0.00024873,2]
[376786148,1754123443505,-500.0,0.00024873,2]
[376786150,1754123443514,-200.47463581,0.00024873,2]
[376786152,1754123443523,-500.0,0.00024873,2]
[376786154,1754123443532,-150.0,0.00024873,2]
[376786156,1754123443543,-500.0,0.00024873,2]
[376786158,1754123443552,-500.0,0.00024873,2]
[376786160,1754123443560,-500.0,0.00024873,2]
[376786162,1754123443569,-502.18292988,0.00024873,2]
[376786164,1754123443578,-409.28358075,0.00024873,2]
[376786166,1754123443586,-500.0,0.00024873,2]
[376786168,1754123443595,-500.0,0.00024873,2]
[376786170,1754123443604,-500.0,0.00024873,2]
[376786172,1754123443613,-500.0,0.00024873,2]
[376786174,1754123443622,-501.2000682,0.00024873,2]
[376786176,1754123443631,-503.44730066,0.00024873,2]
[376786178,1754123443640,-151.0,0.00024873,7]
[376786180,1754123443649,-295.138449,0.00024873,7]
[376786182,1754123443658,-1000.0,0.000249,2]
[376786184,1754123443667,-1000.0,0.000249,2]
[376786186,1754123443675,-1000.0,0.000249,2]
[376786188,1754123443686,-1000.0,0.000249,2]
[376786190,1754123443694,-1000.0,0.000249,2]
[376786192,1754123443703,-1000.0,0.000249,2]
[376786193,1754123443712,-1000.0,0.000249,2]
[376786195,1754123443721,-1000.0,0.000249,2]
[376786197,1754123443729,-1000.0,0.000249,2]
[376786199,1754123443738,-1000.0,0.000249,2]
[376786201,1754123443747,-1000.0,0.000249,2]
[376786203,1754123443756,-1000.0,0.000249,2]
[376786205,1754123443765,-1000.0,0.000249,2]
[376786207,1754123443773,-1000.0,0.000249,2]
[376786209,1754123443782,-1000.0,0.000249,2]
[376786211,1754123443791,-1000.0,0.000249,2]
[376786213,1754123443800,-1000.0,0.000249,2]
[376786215,1754123443809,-1000.0,0.000249,2]
[376786217,1754123443818,-1000.0,0.000249,2]
[376786219,1754123443827,-1000.0,0.000249,2]
[376786221,1754123443837,-1006.13,0.000249,2]
[376786223,1754123443848,-1000.0,0.000249,2]
[376786225,1754123443857,-1000.0,0.000249,2]
[376786227,1754123443866,-1000.0,0.000249,2]
[376786229,1754123443875,-1000.0,0.000249,2]
[376786231,1754123443884,-1000.0,0.000249,2]
[376786233,1754123443893,-151.0,0.000249,7]
[376786235,1754123443902,-151.0,0.000249,7]
[376786237,1754123443911,-151.0,0.000249,7]
[376786239,1754123443920,-151.0,0.000249,7]
[376786241,1754123443929,-151.0,0.000249,7]
[376786243,1754123443938,-151.0,0.000249,7]
[376786245,1754123443947,-151.0,0.000249,7]
[376786247,1754123443957,-151.0,0.000249,7]
[376786249,1754123443966,-151.0,0.000249,7]
[376786251,1754123443975,-151.0,0.000249,7]
[376786253,1754123443984,-151.617331,0.000249,7]
[376786255,1754123443994,-171.314369,0.000249,7]
[376786257,1754123444003,-171.314369,0.000249,7]
[376786259,1754123444013,-155.772803,0.000249,7]
[376786261,1754123444022,-151.0,0.000249,7]
[376786263,1754123444031,-151.0,0.000249,7]
[376786265,1754123444041,-151.0,0.000249,7]
[376786267,1754123444051,-151.0,0.000249,7]
[376786269,1754123444060,-29089.14060416,0.000249,2]
[376786273,1754123444087,-266.9869136,0.000249,2]
[376786275,1754123444099,-291.300155,0.000249,2]
[376786282,1754123444154,-615.21,0.00024647,3]
[376786283,1754123444163,-75.56486008,0.00024657,10]
[376786290,1754123444216,-505.32782001,0.00024657,10]
[376786498,1754123446224,-505.75731991,0.00024657,10]
[376786500,1754123446234,-460.0,0.00024657,10]
[376786502,1754123446244,-460.0,0.00024657,10]
[376786504,1754123446254,-447.54967586,0.00024657,10]
[376786547,1754123446675,-0.04067681,0.00024657,10]
[376789179,1754123480123,-5000.0,0.0002441,2]
[376789263,1754123481821,366.6467218,0.00023989,2]
[376789264,1754123484239,5000.0,0.00024556,2]
[376789266,1754123490430,1174.22,0.00026027,120]
[376789269,1754123500073,4633.3532782,0.00024556,2]
[376789270,1754123500200,366.6467218,0.00024556,2]
[376789276,1754123516501,5000.0,0.00024556,2]
[376789280,1754123710958,-175.974682,0.00022799,2]
[376789281,1754123710980,-91.73919529,0.000228,2]
[376789282,1754123712438,-257.779812,0.000228,2]
[376789283,1754123714060,-368.85298293,0.000228,2]
[376789284,1754123716654,-320.03852487,0.00022572,2]
[376789285,1754123721049,-159.31301254,0.00022572,2]
[376789290,1754123770003,-376.42394142,0.00022572,2]
[376789291,1754123810343,726.04453402,0.00027272,30]
[376789293,1754123883227,-32859.0,0.00022472,2]
[376789295,1754124013009,-225.15798163,0.00021395,2]
[376789296,1754124014998,-185.82828759,0.00021395,2]
[376789297,1754124029613,-278.72656368,0.00021395,2]
[376789298,1754124029638,-164.642411,0.0002158,2]
[376789299,1754124029661,-89.63102532,0.00021603,2]
[376789300,1754124039495,-172.90418563,0.00021603,2]
[376789301,1754124039521,-56.07820714,0.00022056,2]
[376789302,1754124064161,-206.5286486,0.00021955,2]
[376789303,1754124066733,-93.4713514,0.00021955,2]
[376789304,1754124066757,-107.54475303,0.00021956,2]
[376789305,1754124069203,-413.29189154,0.00021956,2]
[376789306,1754124075716,-208.99638144,0.00021956,2]
[376789307,1754124078334,-371.32432243,0.00021956,2]
[376789308,1754124079831,-155.37189955,0.00021956,2]
[376789309,1754124103193,-160.0,0.00021736,2]
[376789310,1754124105801,-193.10734889,0.00021736,2]
[376789311,1754124110197,-183.818179,0.00021736,2]
[376789312,1754124157819,-2418.0,0.00021736,2]
[376789313,1754124235526,-206.01154556,0.00021736,2]
[376789314,1754124238336,-161.4319093,0.00021736,2]
[376789315,1754124240935,-278.29680352,0.00021736,2]
[376789316,1754124242408,-329.20922547,0.00021736,2]
[376789317,1754124243965,-220.61225527,0.00021736,2]
[376789319,1754124245414,-174.48881522,0.00021736,2]
[376789320,1754124248171,-181.70319648,0.00021736,2]
[376789322,1754124253046,-182.87183376,0.00021252,2]
[376789323,1754124362496,-5000.0,0.00021039,2]
[376789324,1754124362518,-179.5658949,0.00021052,2]
[376789325,1754124362542,-8356.03609223,0.00021152,2]
[376789326,1754124362562,-1274.50717324,0.00021252,2]
[376789327,1754124362583,-242.95665096,0.00021395,2]
[376789328,1754124362607,-179.5658949,0.00021403,2]
[376789329,1754124362630,-179.5658949,0.00021753,2]
[376789330,1754124362652,-1025.0,0.00021852,2]
[376789331,1754124362675,-300.0,0.00021853,2]
[376789332,1754124362705,-154.0,0.00021853,2]
[376789333,1754124362731,-300.0,0.00021853,2]
[376789334,1754124362754,-300.0,0.00021853,2]
[376789335,1754124364156,211.80239887,0.00021151,2]
[376789336,1754124369481,-223.45009498,0.00020829,2]
[376789337,1754124393304,-199.73124727,0.00020829,2]
[376789338,1754124396571,-300.0,0.00020829,2]
[376789339,1754124399366,-185.67421876,0.00020829,2]
[376789340,1754124402075,-156.25628594,0.00020829,2]
[376789341,1754124404437,-390.85159824,0.00020829,2]
[376789342,1754124410861,-274.710321,0.00020829,2]
[376789343,1754124412392,-280.87577895,0.00020829,2]
[376789344,1754124415538,-162.79077453,0.00020829,2]
[376789345,1754124418200,-208.00150688,0.00020829,2]
[376789346,1754124420783,-191.66137699,0.00020829,2]
[376789349,1754124425783,-1472.0,0.00020829,2]
[376789352,1754124534485,-232.54852998,0.00020372,2]
[376789356,1754124563589,5000.0,0.0002,2]
[376789357,1754124580635,5000.0,0.0002,2]
[376789358,1754124588544,4119.51421909,0.0002,2]
[376789359,1754124596810,5000.0,0.0002,2]
[376789360,1754124602547,157.33340975,7.5e-07,2]
[376789361,1754124602642,157.33340975,7.5e-07,2]
[376789362,1754124602970,157.33340975,7.5e-07,2]
[376789363,1754124603078,157.33340975,7.5e-07,2]
[376789364,1754124603186,157.33340975,7.5e-07,2]
[376789365,1754124603294,157.33340975,7.5e-07,2]
[376789366,1754124603496,157.33340975,7.5e-07,2]
[376789367,1754124603671,157.33340975,7.5e-07,2]
[376789368,1754124603783,157.33340975,7.5e-07,2]
[376789369,1754124603974,157.33340975,7.5e-07,2]
[376789370,1754124613164,5000.0,0.0002,2]
[376789371,1754124624487,-170.81361504,0.00020372,2]
[376789372,1754124628687,173.49061871,0.0002,2]
[376789373,1754124628712,4307.15168341,0.0002,2]
[376789374,1754124628737,519.35769788,0.0002,2]
[376789409,1754124632469,-201.98601915,0.00020372,2]
[376789410,1754124632480,-822.89690943,0.00020813,2]
[376789412,1754124632491,-1924.3667239,0.00020813,2]
[376789416,1754124632521,-24106.02057267,0.00020813,2]
[376789418,1754124632531,-168.16503093,0.00021051,2]
[376789420,1754124632540,-300.0,0.00021264,2]
[376789422,1754124632550,-10000.0,0.00021265,2]
[376789424,1754124632559,-200.0,0.00021689,15]
[376789426,1754124632569,-200.0,0.00021689,15]
[376789428,1754124632578,-200.0,0.00021689,15]
[376789430,1754124632588,-200.0,0.00021689,15]
[376789432,1754124632597,-200.0,0.00021689,15]
[376789434,1754124632607,-174.64,0.00022,2]
[376789436,1754124632616,-1200.0,0.00022056,2]
[376789438,1754124632625,-22882.15938446,0.00022057,2]
[376789561,1754124638439,-1009.13986329,0.00022057,2]
[376789562,1754124638451,-1008.70075225,0.00022057,2]
[376789563,1754124638461,-936.05886592,0.00022168,2]
[376789564,1754124638471,-298.236,0.00022368,2]
[376789565,1754124638480,-77.96034744,0.00022373,2]
[376789566,1754124638492,-122.51428837,0.00022373,2]
[376789567,1754124638501,-472.46976057,0.00022373,2]
[376789568,1754124638513,-27.53023943,0.00022373,2]
[376789569,1754124638523,-500.0,0.00022373,2]
[376789570,1754124638532,-34.31754836,0.00022373,2]
[376789571,1754124638544,-179.37751848,0.00022373,2]
[376789572,1754124638558,-508.13626735,0.00022373,2]
[376789573,1754124638569,-349.32296127,0.00022373,2]
[376789574,1754124638580,-152.34704482,0.00022373,2]
[376789575,1754124638590,-924.19968414,0.00022373,2]
[376789576,1754124638605,-10089.34705999,0.00022373,2]
[376789577,1754124638619,-6596.46031408,0.00022373,2]
[376789578,1754124638631,-351.27555648,0.00022373,2]
[376789579,1754124638790,-1744.87142731,0.00022373,2]
[376789580,1754124638848,-30293.845958,0.00022373,2]
[376789581,1754124638858,-317.57593189,0.00022399,2]
[376789582,1754124638867,-177.81310254,0.000224,2]
[376789583,1754124638877,-503.44730066,0.000224,2]
[376789584,1754124638888,-501.2000682,0.000224,2]
[376789585,1754124638898,-1764.09752128,0.00022472,2]
[376789586,1754124638907,-233.27944302,0.00022473,2]
[376789587,1754124638916,-1824.97611492,0.00022572,2]
[376789588,1754124638926,-426.83,0.00022652,2]
[376789589,1754124638935,-936.05886585,0.00022884,2]
[376789590,1754124638945,-1009.57838405,0.00022921,2]
[376789591,1754124638954,-160.0,0.00023,2]
[376789592,1754124638963,-537.76867247,0.0002305,2]
[376789593,1754124638973,-174.64,0.00023275,2]
[376789594,1754124638982,-500.0,0.00023436,2]
[376789595,1754124638991,-151.0,0.00023491,2]